[Event "FIDE Online Olympiad Div 2 Pool A 2020"]
[Site "Online"]
[Date "2020.08.16"]
[Round "7"]
[White "Schneider, Jana"]
[Black "De Rycke, Tyani"]
[Result "1-0"]
[ECO "B45"]
[WhiteElo "2271"]
[BlackElo "1832"]
[Annotator "broadcasts"]
[PlyCount "115"]
[EventDate "2020.08.14"]
[EventType "team-tourn"]
[TimeControl "900+5"]

1. e4 {[%emt 0:00:02]} c5 {[%emt 0:00:02]} 2. Nf3 {[%emt 0:00:02]} e6 {[%emt 0:00:02]} 3. d4 {[%emt 0:00:02]} cxd4 {[%emt 0:00:03]} 4. Nxd4 {[%emt 0:00:01]} Nf6 {[%emt 0:00:01]} 5. Nc3 {[%emt 0:00:02]} Nc6 {[%emt 0:00:02]} 6. Ndb5 {[%emt 0:00:05]} Bb4 {[%emt 0:00:04]} 7. a3 {[%emt 0:00:01]} Bxc3+ {[%emt 0:00:02]} 8. Nxc3 {[%emt 0:00:02]} O-O {[%emt 0:00:03]} 9. Bd3 {[%emt 0:00:32]} d5 {[%emt 0:00:04]} 10. exd5 {[%emt 0:00:04]} exd5 {[%emt 0:00:02]} 11. O-O {[%emt 0:00:03]} d4 {[%emt 0:00:07]} 12. Ne2 {[%emt 0:00:04]} Bg4 {[%emt 0:00:06]} 13. Bg5 {[%emt 0:00:03]} h6 {[%emt 0:00:11]} 14. Bh4 {[%emt 0:00:14]} Qd6 {[%emt 0:00:32]} 15. Re1 {[%emt 0:00:12]} Rfe8 {[%emt 0:00:07]} 16. Qd2 {[%emt 0:00:05]} Rad8 {[%emt 0:00:37]} 17. Bg3 {[%emt 0:03:36]} Qd7 {[%emt 0:00:59]} 18. Nf4 {[%emt 0:00:52]} Rxe1+ {[%emt 0:02:32]} 19. Rxe1 {[%emt 0:00:05]} Re8 {[%emt 0:00:03]} 20. Rxe8+ {[%emt 0:00:37]} Qxe8 {[%emt 0:00:05]} 21. h3 {[%emt 0:00:03]} Be6 {[%emt 0:01:14]} 22. Bb5 {[%emt 0:00:46]} Ne4 {[%emt 0:02:30]} 23. Qd3 {[%emt 0:00:18]} Nxg3 {[%emt 0:00:18]} 24. Qxg3 {[%emt 0:00:33]} Bf5 {[%emt 0:01:23]} 25. Bd3 {[%emt 0:03:00]} Bxd3 {[%emt 0:00:58]} 26. Qxd3 {[%emt 0:00:02]} Qe1+ {[%emt 0:00:17]} 27. Qf1 {[%emt 0:00:15]} Qd2 {[%emt 0:00:06]} 28. Nd5 {[%emt 0:00:43]} Qxc2 {[%emt 0:00:25]} 29. Qb5 {[%emt 0:00:33]} d3 {[%emt 0:01:18]} 30. Ne3 {[%emt 0:00:05]} Qc1+ {[%emt 0:00:06]} 31. Kh2 {[%emt 0:00:01]} d2 {[%emt 0:00:15]} 32. Qxb7 {[%emt 0:00:03]} Nd4 {[%emt 0:01:06]} 33. Qa8+ {[%emt 0:00:11]} Kh7 {[%emt 0:00:40]} 34. Qe4+ {[%emt 0:00:02]} g6 {[%emt 0:00:11]} 35. Qxd4 {[%emt 0:00:01]} Qe1 {[%emt 0:00:13]} 36. Qf6 {[%emt 0:00:56]} d1=Q {[%emt 0:00:15]} 37. Qxf7+ {[%emt 0:00:09]} Kh8 {[%emt 0:00:03]} 38. Nxd1 {[%emt 0:00:03]} Qxd1 {[%emt 0:00:07]} 39. Qxg6 {[%emt 0:00:10]} Qd2 {[%emt 0:00:02]} 40. Qf6+ {[%emt 0:00:05]} Kg8 {[%emt 0:00:07]} 41. f4 {[%emt 0:00:09]} a5 {[%emt 0:00:07]} 42. Qg6+ {[%emt 0:00:07]} Kf8 {[%emt 0:00:07]} 43. Qxh6+ {[%emt 0:00:03]} Kf7 {[%emt 0:00:01]} 44. Qh7+ {[%emt 0:00:10]} Kf8 {[%emt 0:00:07]} 45. Qh8+ {[%emt 0:00:04]} Kf7 {[%emt 0:00:01]} 46. Qe5 {[%emt 0:00:03]} Kg8 {[%emt 0:00:30]} 47. f5 {[%emt 0:00:10]} Kf8 {[%emt 0:00:22]} 48. f6 {[%emt 0:00:12]} Kf7 {[%emt 0:00:01]} 49. Qe7+ {[%emt 0:00:03]} Kg6 {[%emt 0:00:02]} 50. Qg7+ {[%emt 0:00:06]} Kf5 {[%emt 0:00:07]} 51. f7 {[%emt 0:00:08]} Qd6+ {[%emt 0:00:14]} 52. Qg3 {[%emt 0:00:02]} Qf8 {[%emt 0:00:05]} 53. Qf3+ {[%emt 0:00:13]} Ke6 {[%emt 0:00:09]} 54. b4 {[%emt 0:00:17]} axb4 {[%emt 0:00:05]} 55. axb4 {[%emt 0:00:01]} Qd6+ {[%emt 0:00:02]} 56. Kh1 {[%emt 0:00:12]} Qf8 {[%emt 0:00:10]} 57. b5 {[%emt 0:00:04]} Kd7 {[%emt 0:00:05]} 58. Qc6+ {[%emt 0:00:07]} 1-0

[Event "FIDE Online Olympiad Div 2 Pool A 2020"]
[Site "Online"]
[Date "2020.08.16"]
[Round "7"]
[White "Wagner, Dennis"]
[Black "Lenaerts, Lennert"]
[Result "1/2-1/2"]
[ECO "D11"]
[WhiteElo "2238"]
[BlackElo "2265"]
[Annotator "broadcasts"]
[PlyCount "82"]
[EventDate "2020.08.14"]
[EventType "team-tourn"]
[TimeControl "900+5"]

1. Nf3 {[%emt 0:00:01]} d5 {[%emt 0:00:03]} 2. e3 {[%emt 0:00:02]} Nf6 {[%emt 0:00:01]} 3. c4 {[%emt 0:00:02]} c6 {[%emt 0:00:05]} 4. d4 {[%emt 0:00:31]} Bg4 {[%emt 0:00:15]} 5. Nc3 {[%emt 0:00:14]} e6 {[%emt 0:00:03]} 6. h3 {[%emt 0:00:01]} Bh5 {[%emt 0:00:02]} 7. g4 {[%emt 0:00:35]} Bg6 {[%emt 0:00:03]} 8. Ne5 {[%emt 0:00:00]} Nbd7 {[%emt 0:00:02]} 9. Nxg6 {[%emt 0:00:06]} hxg6 {[%emt 0:00:00]} 10. a3 {[%emt 0:00:14]} g5 {[%emt 0:00:29]} 11. Qf3 {[%emt 0:00:34]} Be7 {[%emt 0:00:49]} 12. cxd5 {[%emt 0:01:51]} cxd5 {[%emt 0:00:48]} 13. Bd2 {[%emt 0:00:52]} Rc8 {[%emt 0:00:10]} 14. Bd3 {[%emt 0:00:28]} Nb6 {[%emt 0:00:46]} 15. b3 {[%emt 0:01:01]} a6 {[%emt 0:00:26]} 16. Kf1 {[%emt 0:00:03]} Bd6 {[%emt 0:00:25]} 17. Kg2 {[%emt 0:00:49]} Qe7 {[%emt 0:00:05]} 18. e4 {[%emt 0:00:19]} Rxc3 {[%emt 0:04:21]} 19. e5 {[%emt 0:04:35]} Rxb3 {[%emt 0:02:57]} 20. Bxg5 {[%emt 0:00:19]} Nbd7 {[%emt 0:00:02]} 21. Rhc1 {[%emt 0:01:21]} Kd8 {[%emt 0:00:02]} 22. exd6 {[%emt 0:02:24]} Qxd6 {[%emt 0:00:01]} 23. Bf4 {[%emt 0:00:07]} e5 {[%emt 0:00:00]} 24. dxe5 {[%emt 0:00:10]} Nxe5 {[%emt 0:00:01]} 25. Qe2 {[%emt 0:00:03]} Nfd7 {[%emt 0:00:10]} 26. Qc2 {[%emt 0:00:19]} Qf6 {[%emt 0:00:28]} 27. Qc7+ {[%emt 0:00:04]} Ke8 {[%emt 0:00:07]} 28. Bxe5 {[%emt 0:00:02]} Nxe5 {[%emt 0:00:11]} 29. Qc8+ {[%emt 0:00:07]} Ke7 {[%emt 0:00:01]} 30. Qc7+ {[%emt 0:00:05]} Ke8 {[%emt 0:00:02]} 31. Bf5 {[%emt 0:00:03]} g6 {[%emt 0:01:21]} 32. Qb8+ {[%emt 0:00:04]} Ke7 {[%emt 0:00:01]} 33. Rc7+ {[%emt 0:00:03]} Kd6 {[%emt 0:00:01]} 34. Rd7+ {[%emt 0:00:05]} Kc5 {[%emt 0:00:04]} 35. Qc7+ {[%emt 0:00:03]} Nc6 {[%emt 0:00:14]} 36. Rc1+ {[%emt 0:00:02]} Rc3 {[%emt 0:00:04]} 37. Rxc3+ {[%emt 0:00:06]} Qxc3 {[%emt 0:00:00]} 38. Qd6+ {[%emt 0:00:06]} Kb6 {[%emt 0:00:03]} 39. Qc7+ {[%emt 0:00:02]} Kc5 {[%emt 0:00:34]} 40. Qd6+ {[%emt 0:00:17]} Kb6 {[%emt 0:00:42]} 41. Qc7+ {[%emt 0:00:08]} Kc5 {[%emt 0:00:24]} 1/2-1/2

[Event "FIDE Online Olympiad Div 2 Pool A 2020"]
[Site "Online"]
[Date "2020.08.16"]
[Round "7"]
[White "Osmanodja, Filiz"]
[Black "Musabayeva, Diana"]
[Result "1-0"]
[ECO "B90"]
[WhiteElo "2086"]
[BlackElo "1704"]
[Annotator "broadcasts"]
[PlyCount "55"]
[EventDate "2020.08.14"]
[EventType "team-tourn"]
[TimeControl "900+5"]

1. e4 {[%emt 0:00:02]} c5 {[%emt 0:00:03]} 2. Nc3 {[%emt 0:00:02]} d6 {[%emt 0:00:03]} 3. Nf3 {[%emt 0:00:02]} Nf6 {[%emt 0:00:11]} 4. d4 {[%emt 0:00:08]} cxd4 {[%emt 0:00:13]} 5. Nxd4 {[%emt 0:00:00]} a6 {[%emt 0:00:31]} 6. Be3 {[%emt 0:00:01]} e5 {[%emt 0:00:27]} 7. Nf3 {[%emt 0:00:13]} h6 {[%emt 0:00:09]} 8. Bc4 {[%emt 0:00:05]} Be6 {[%emt 0:00:04]} 9. Bb3 {[%emt 0:00:04]} Be7 {[%emt 0:00:10]} 10. O-O {[%emt 0:00:35]} O-O {[%emt 0:00:05]} 11. Qe2 {[%emt 0:01:36]} Nbd7 {[%emt 0:00:24]} 12. Rad1 {[%emt 0:00:15]} Qc7 {[%emt 0:00:09]} 13. Nh4 {[%emt 0:00:43]} Rfe8 {[%emt 0:03:48]} 14. Nf5 {[%emt 0:00:28]} Bxf5 {[%emt 0:00:40]} 15. exf5 {[%emt 0:00:02]} Nc5 {[%emt 0:00:02]} 16. Nd5 {[%emt 0:00:26]} Nxd5 {[%emt 0:00:04]} 17. Bxd5 {[%emt 0:00:01]} Rac8 {[%emt 0:00:18]} 18. Qg4 {[%emt 0:00:29]} Kf8 {[%emt 0:00:36]} 19. Qh5 {[%emt 0:01:23]} Bf6 {[%emt 0:03:10]} 20. b4 {[%emt 0:02:14]} Na4 {[%emt 0:00:38]} 21. Bb3 {[%emt 0:00:03]} Nb2 {[%emt 0:00:48]} 22. Rxd6 {[%emt 0:00:17]} g6 {[%emt 0:01:11]} 23. fxg6 {[%emt 0:02:35]} Qxd6 {[%emt 0:00:44]} 24. g7+ {[%emt 0:00:05]} Kxg7 {[%emt 0:00:14]} 25. Bxh6+ {[%emt 0:01:16]} Kh8 {[%emt 0:01:09]} 26. Bf8+ {[%emt 0:00:44]} Kg8 {[%emt 0:00:07]} 27. Qxf7+ {[%emt 0:00:04]} Kh8 {[%emt 0:00:04]} 28. Qh5# {[%emt 0:00:01]} 1-0

[Event "FIDE Online Olympiad Div 2 Pool A 2020"]
[Site "Online"]
[Date "2020.08.16"]
[Round "7"]
[White "Huynh, Laurent"]
[Black "Engel, Luis"]
[Result "0-1"]
[ECO "B68"]
[WhiteElo "1866"]
[BlackElo "2129"]
[Annotator "broadcasts"]
[PlyCount "110"]
[EventDate "2020.08.14"]
[EventType "team-tourn"]
[TimeControl "900+5"]

1. e4 {[%emt 0:00:01]} c5 {[%emt 0:00:02]} 2. Nf3 {[%emt 0:00:02]} d6 {[%emt 0:00:01]} 3. d4 {[%emt 0:00:01]} cxd4 {[%emt 0:00:00]} 4. Nxd4 {[%emt 0:00:01]} Nf6 {[%emt 0:00:02]} 5. Nc3 {[%emt 0:00:01]} Nc6 {[%emt 0:00:03]} 6. Bg5 {[%emt 0:00:01]} e6 {[%emt 0:00:02]} 7. Qd2 {[%emt 0:00:03]} a6 {[%emt 0:00:01]} 8. O-O-O {[%emt 0:00:03]} Bd7 {[%emt 0:00:02]} 9. f4 {[%emt 0:00:03]} Be7 {[%emt 0:00:02]} 10. Bxf6 {[%emt 0:00:18]} Bxf6 {[%emt 0:00:28]} 11. Nf3 {[%emt 0:01:42]} Be7 {[%emt 0:01:30]} 12. Kb1 {[%emt 0:00:20]} Qc7 {[%emt 0:00:16]} 13. g3 {[%emt 0:01:34]} O-O-O {[%emt 0:00:48]} 14. Bd3 {[%emt 0:02:23]} Kb8 {[%emt 0:00:04]} 15. Rhe1 {[%emt 0:01:58]} Rc8 {[%emt 0:02:22]} 16. Ne2 {[%emt 0:02:26]} Rhd8 {[%emt 0:01:11]} 17. c3 {[%emt 0:00:41]} Be8 {[%emt 0:01:28]} 18. Ned4 {[%emt 0:00:32]} Na5 {[%emt 0:00:41]} 19. Qe2 {[%emt 0:00:57]} g6 {[%emt 0:01:44]} 20. Rc1 {[%emt 0:01:46]} e5 {[%emt 0:00:46]} 21. Nb3 {[%emt 0:00:22]} Nxb3 {[%emt 0:00:05]} 22. axb3 {[%emt 0:00:02]} exf4 {[%emt 0:01:02]} 23. gxf4 {[%emt 0:00:03]} d5 {[%emt 0:00:35]} 24. e5 {[%emt 0:00:32]} Qb6 {[%emt 0:00:20]} 25. b4 {[%emt 0:00:21]} a5 {[%emt 0:00:19]} 26. b5 {[%emt 0:00:14]} a4 {[%emt 0:00:22]} 27. Rc2 {[%emt 0:00:05]} Bd7 {[%emt 0:00:22]} 28. Qf1 {[%emt 0:00:20]} Rc7 {[%emt 0:00:33]} 29. Rec1 {[%emt 0:00:18]} Rdc8 {[%emt 0:00:05]} 30. h4 {[%emt 0:00:04]} Bc5 {[%emt 0:00:12]} 31. Re1 {[%emt 0:00:07]} a3 {[%emt 0:00:32]} 32. b3 {[%emt 0:00:06]} Be3 {[%emt 0:00:25]} 33. c4 {[%emt 0:00:02]} dxc4 {[%emt 0:00:12]} 34. bxc4 {[%emt 0:00:02]} Bxf4 {[%emt 0:00:13]} 35. Nd2 {[%emt 0:00:13]} Bxd2 {[%emt 0:00:25]} 36. Rxd2 {[%emt 0:00:01]} Be6 {[%emt 0:00:02]} 37. Rc2 {[%emt 0:00:06]} Qa5 {[%emt 0:00:01]} 38. Rec1 {[%emt 0:00:03]} Qb4+ {[%emt 0:00:03]} 39. Ka1 {[%emt 0:00:02]} Qc5 {[%emt 0:00:03]} 40. Qf4 {[%emt 0:00:04]} Rd8 {[%emt 0:00:01]} 41. Be2 {[%emt 0:00:03]} Rcd7 {[%emt 0:00:03]} 42. Bf3 {[%emt 0:00:07]} Rd4 {[%emt 0:00:02]} 43. Qe3 {[%emt 0:00:03]} Bf5 {[%emt 0:00:06]} 44. Rc3 {[%emt 0:00:02]} Re8 {[%emt 0:00:17]} 45. e6 {[%emt 0:00:10]} Rxe6 {[%emt 0:00:06]} 46. Qf2 {[%emt 0:00:02]} Qe5 {[%emt 0:00:07]} 47. Bd5 {[%emt 0:00:02]} Re7 {[%emt 0:00:11]} 48. Qa2 {[%emt 0:00:03]} Rd3 {[%emt 0:00:17]} 49. Qxa3 {[%emt 0:00:03]} Rxc3 {[%emt 0:00:01]} 50. Rxc3 {[%emt 0:00:05]} Qf6 {[%emt 0:00:02]} 51. Ka2 {[%emt 0:00:05]} Re2+ {[%emt 0:00:02]} 52. Kb3 {[%emt 0:00:01]} Qxc3+ {[%emt 0:00:12]} 53. Kxc3 {[%emt 0:00:02]} Re3+ {[%emt 0:00:00]} 54. Kb4 {[%emt 0:00:01]} Rxa3 {[%emt 0:00:00]} 55. Kxa3 {[%emt 0:00:00]} Be6 {[%emt 0:00:02]} 0-1

[Event "FIDE Online Olympiad Div 2 Pool A 2020"]
[Site "Online"]
[Date "2020.08.16"]
[Round "7"]
[White "Cuvelier, Annelies"]
[Black "Schulze, Lara"]
[Result "1/2-1/2"]
[ECO "B56"]
[WhiteElo "1763"]
[BlackElo "2147"]
[Annotator "broadcasts"]
[PlyCount "126"]
[EventDate "2020.08.14"]
[EventType "team-tourn"]
[TimeControl "900+5"]

1. e4 {[%emt 0:00:01]} c5 {[%emt 0:00:03]} 2. Nf3 {[%emt 0:00:01]} d6 {[%emt 0:00:02]} 3. d4 {[%emt 0:00:02]} cxd4 {[%emt 0:00:01]} 4. Nxd4 {[%emt 0:00:00]} Nf6 {[%emt 0:00:01]} 5. Nc3 {[%emt 0:00:02]} Nc6 {[%emt 0:00:02]} 6. Be3 {[%emt 0:00:02]} Ng4 {[%emt 0:00:10]} 7. Bg5 {[%emt 0:00:07]} h6 {[%emt 0:00:17]} 8. Bh4 {[%emt 0:00:01]} g5 {[%emt 0:00:24]} 9. Bg3 {[%emt 0:00:02]} Bg7 {[%emt 0:00:24]} 10. Nf5 {[%emt 0:00:31]} Bxf5 {[%emt 0:00:30]} 11. exf5 {[%emt 0:00:01]} Nf6 {[%emt 0:01:18]} 12. Be2 {[%emt 0:00:57]} Qa5 {[%emt 0:00:43]} 13. O-O {[%emt 0:01:19]} Qxf5 {[%emt 0:01:13]} 14. f4 {[%emt 0:00:30]} g4 {[%emt 0:00:59]} 15. Bh4 {[%emt 0:00:58]} h5 {[%emt 0:00:53]} 16. Bd3 {[%emt 0:00:19]} Qd7 {[%emt 0:01:10]} 17. Qe2 {[%emt 0:00:55]} a6 {[%emt 0:02:51]} 18. Rae1 {[%emt 0:00:06]} O-O-O {[%emt 0:01:29]} 19. a3 {[%emt 0:03:00]} Kb8 {[%emt 0:00:26]} 20. b4 {[%emt 0:00:15]} Rc8 {[%emt 0:01:00]} 21. Na4 {[%emt 0:00:53]} Nd5 {[%emt 0:01:29]} 22. c4 {[%emt 0:01:46]} Nc3 {[%emt 0:00:56]} 23. Nxc3 {[%emt 0:00:31]} Bxc3 {[%emt 0:00:00]} 24. Rd1 {[%emt 0:00:12]} e6 {[%emt 0:00:20]} 25. f5 {[%emt 0:00:36]} Nd4 {[%emt 0:00:03]} 26. Qa2 {[%emt 0:00:30]} Nxf5 {[%emt 0:00:03]} 27. Bxf5 {[%emt 0:00:05]} exf5 {[%emt 0:00:00]} 28. Qb3 {[%emt 0:00:08]} Be5 {[%emt 0:00:02]} 29. c5 {[%emt 0:00:08]} Qc6 {[%emt 0:00:08]} 30. Qxf7 {[%emt 0:00:10]} f4 {[%emt 0:00:03]} 31. cxd6 {[%emt 0:00:11]} Bxd6 {[%emt 0:00:06]} 32. Bg5 {[%emt 0:01:15]} Rhf8 {[%emt 0:00:11]} 33. Qxh5 {[%emt 0:00:05]} f3 {[%emt 0:00:06]} 34. Qxg4 {[%emt 0:00:25]} fxg2 {[%emt 0:00:05]} 35. Rxf8 {[%emt 0:00:07]} Rxf8 {[%emt 0:00:04]} 36. Qxg2 {[%emt 0:00:20]} Qb6+ {[%emt 0:00:01]} 37. Kh1 {[%emt 0:00:07]} Rh8 {[%emt 0:00:09]} 38. h4 {[%emt 0:00:06]} Ka8 {[%emt 0:00:08]} 39. Qd5 {[%emt 0:00:12]} Bb8 {[%emt 0:00:03]} 40. Qd4 {[%emt 0:00:06]} Qc7 {[%emt 0:00:03]} 41. Qf2 {[%emt 0:00:12]} Rf8 {[%emt 0:00:07]} 42. Qg2 {[%emt 0:00:10]} Qb6 {[%emt 0:00:10]} 43. Rf1 {[%emt 0:00:17]} Rc8 {[%emt 0:00:05]} 44. Rc1 {[%emt 0:00:15]} Re8 {[%emt 0:00:04]} 45. Rf1 {[%emt 0:00:09]} Qb5 {[%emt 0:00:02]} 46. Bf4 {[%emt 0:00:33]} Re2 {[%emt 0:00:07]} 47. Qf3 {[%emt 0:00:06]} Re8 {[%emt 0:00:06]} 48. Bxb8 {[%emt 0:00:02]} Kxb8 {[%emt 0:00:03]} 49. Qf4+ {[%emt 0:00:03]} Ka8 {[%emt 0:00:01]} 50. Qf3 {[%emt 0:00:05]} Qc4 {[%emt 0:00:03]} 51. Qg3 {[%emt 0:00:15]} Qe4+ {[%emt 0:00:05]} 52. Kh2 {[%emt 0:00:05]} Rd8 {[%emt 0:00:07]} 53. Rf2 {[%emt 0:00:04]} Rh8 {[%emt 0:00:08]} 54. Rf4 {[%emt 0:00:03]} Qe7 {[%emt 0:00:05]} 55. Rg4 {[%emt 0:00:05]} Ka7 {[%emt 0:00:06]} 56. Qg1+ {[%emt 0:00:02]} Ka8 {[%emt 0:00:08]} 57. Rg8+ {[%emt 0:00:01]} Rxg8 {[%emt 0:00:02]} 58. Qxg8+ {[%emt 0:00:00]} Ka7 {[%emt 0:00:00]} 59. Qg3 {[%emt 0:00:04]} Qe2+ {[%emt 0:00:05]} 60. Kh3 {[%emt 0:00:01]} Qe6+ {[%emt 0:00:04]} 61. Kh2 {[%emt 0:00:04]} Qe2+ {[%emt 0:00:03]} 62. Kh1 {[%emt 0:00:04]} Qe4+ {[%emt 0:00:04]} 63. Kh2 {[%emt 0:00:03]} Qe2+ {[%emt 0:00:01]} 1/2-1/2

[Event "FIDE Online Olympiad Div 2 Pool A 2020"]
[Site "Online"]
[Date "2020.08.16"]
[Round "8"]
[White "Ly, Moulthun"]
[Black "Wagner, Dennis"]
[Result "1/2-1/2"]
[ECO "D83"]
[WhiteElo "2420"]
[BlackElo "2250"]
[Annotator "broadcasts"]
[PlyCount "125"]
[EventDate "2020.08.14"]
[EventType "team-tourn"]
[TimeControl "900+5"]

1. d4 {[%emt 0:00:07]} Nf6 {[%emt 0:00:02]} 2. c4 {[%emt 0:00:08]} g6 {[%emt 0:00:01]} 3. Nc3 {[%emt 0:00:15]} d5 {[%emt 0:00:02]} 4. Bf4 {[%emt 0:00:37]} Bg7 {[%emt 0:00:02]} 5. e3 {[%emt 0:00:02]} O-O {[%emt 0:00:02]} 6. Rc1 {[%emt 0:00:55]} Be6 {[%emt 0:00:03]} 7. cxd5 {[%emt 0:00:28]} Nxd5 {[%emt 0:00:02]} 8. Nxd5 {[%emt 0:00:02]} Bxd5 {[%emt 0:00:06]} 9. Bxc7 {[%emt 0:00:41]} Qd7 {[%emt 0:00:04]} 10. Nf3 {[%emt 0:01:32]} Nc6 {[%emt 0:00:06]} 11. Bg3 {[%emt 0:00:07]} Rfd8 {[%emt 0:03:49]} 12. Bb5 {[%emt 0:02:12]} Rac8 {[%emt 0:04:23]} 13. O-O {[%emt 0:00:42]} a6 {[%emt 0:02:10]} 14. Ba4 {[%emt 0:03:42]} Bxa2 {[%emt 0:00:04]} 15. Bb3 {[%emt 0:00:51]} Bxb3 {[%emt 0:00:48]} 16. Qxb3 {[%emt 0:00:00]} b5 {[%emt 0:01:07]} 17. h3 {[%emt 0:00:46]} e6 {[%emt 0:00:42]} 18. Rc3 {[%emt 0:00:43]} Na5 {[%emt 0:00:12]} 19. Qa2 {[%emt 0:00:14]} Nc4 {[%emt 0:01:29]} 20. Rfc1 {[%emt 0:00:57]} Qb7 {[%emt 0:00:35]} 21. b3 {[%emt 0:00:08]} Nd6 {[%emt 0:00:15]} 22. Rxc8 {[%emt 0:00:24]} Rxc8 {[%emt 0:00:05]} 23. Rxc8+ {[%emt 0:00:06]} Nxc8 {[%emt 0:00:00]} 24. Qa5 {[%emt 0:00:08]} Nb6 {[%emt 0:00:04]} 25. Bd6 {[%emt 0:00:18]} Bf6 {[%emt 0:00:33]} 26. Bc5 {[%emt 0:00:06]} Nd7 {[%emt 0:00:01]} 27. Bb4 {[%emt 0:00:37]} h5 {[%emt 0:00:04]} 28. Nd2 {[%emt 0:00:13]} Qc6 {[%emt 0:00:02]} 29. Qa1 {[%emt 0:00:04]} Kh7 {[%emt 0:00:11]} 30. Qb1 {[%emt 0:00:01]} Nb6 {[%emt 0:00:02]} 31. Ne4 {[%emt 0:00:02]} Bg7 {[%emt 0:00:05]} 32. h4 {[%emt 0:00:05]} Nd5 {[%emt 0:00:02]} 33. Bc5 {[%emt 0:00:01]} Kg8 {[%emt 0:00:03]} 34. g3 {[%emt 0:00:04]} a5 {[%emt 0:00:07]} 35. Qd3 {[%emt 0:00:07]} Nf6 {[%emt 0:00:09]} 36. Nd6 {[%emt 0:00:05]} b4 {[%emt 0:00:09]} 37. Nc4 {[%emt 0:00:08]} a4 {[%emt 0:00:05]} 38. Ne5 {[%emt 0:00:08]} Qa8 {[%emt 0:00:05]} 39. bxa4 {[%emt 0:00:09]} Qxa4 {[%emt 0:00:02]} 40. Qc4 {[%emt 0:00:04]} Bf8 {[%emt 0:00:03]} 41. Bxf8 {[%emt 0:00:06]} Kxf8 {[%emt 0:00:01]} 42. Qc7 {[%emt 0:00:02]} Qe8 {[%emt 0:00:05]} 43. Qb7 {[%emt 0:00:09]} Nd5 {[%emt 0:00:12]} 44. e4 {[%emt 0:00:02]} Nf6 {[%emt 0:00:07]} 45. Qxb4+ {[%emt 0:00:03]} Kg7 {[%emt 0:00:01]} 46. f3 {[%emt 0:00:04]} Qc8 {[%emt 0:00:04]} 47. Nd3 {[%emt 0:00:06]} Qc2 {[%emt 0:00:04]} 48. Nf2 {[%emt 0:00:01]} Qe2 {[%emt 0:00:04]} 49. Kg2 {[%emt 0:00:01]} Nd7 {[%emt 0:00:09]} 50. Qd6 {[%emt 0:00:03]} Qb5 {[%emt 0:00:06]} 51. g4 {[%emt 0:00:08]} hxg4 {[%emt 0:00:03]} 52. Nxg4 {[%emt 0:00:03]} Qe2+ {[%emt 0:00:02]} 53. Nf2 {[%emt 0:00:03]} Qb5 {[%emt 0:00:07]} 54. Kg3 {[%emt 0:00:09]} Nf6 {[%emt 0:00:01]} 55. Qe5 {[%emt 0:00:08]} Qf1 {[%emt 0:00:22]} 56. Nh3 {[%emt 0:00:20]} Qe1+ {[%emt 0:00:01]} 57. Kg2 {[%emt 0:00:04]} Qxh4 {[%emt 0:00:02]} 58. Ng5 {[%emt 0:00:09]} Qe1 {[%emt 0:00:08]} 59. Nh3 {[%emt 0:00:05]} Qe2+ {[%emt 0:00:05]} 60. Kg3 {[%emt 0:00:04]} Qe1+ {[%emt 0:00:02]} 61. Kg2 {[%emt 0:00:00]} Qe2+ {[%emt 0:00:01]} 62. Nf2 {[%emt 0:00:03]} Qd2 {[%emt 0:00:01]} 63. Kg3 {[%emt 0:00:04]} 1/2-1/2